{"text_format":"1","workbook":"xlsx","n_sheets":4,"sheets":["Param","Lisez-moi","Roster","Hall of Fame"],"not_rendered":{"charts":0,"images":0,"macros":1,"external_links":0,"defined_names":46,"comments":0,"pivot_tables":0},"unopened":[],"bounds":{"document_bytes":16777216,"sheet_cells":100000,"rows_first":2000,"rows_last":500,"rows_between":2000,"halvings":0,"cell_chars":16384,"cell_head_chars":4096},"cells_cut":0,"cells_raw":0,"read":"whole","date_system":"1900"}

{"sheet":"Param","index":0,"n_rows":406,"n_cols":47,"rows_kept":406,"cut":false,"hidden":true,"merged":[[2,1,2,2],[2,5,2,7],[2,10,2,19]]}
[]
[]
[null,"Valeur ajoutée",null,null,null,"Races",null,null,null,null,"Joueurs"]
[null,"Simple",20000,null,null,"Nom","Relance","Apo",null,null,"Race","Joueur","Position","M","F","AG","AR","Compétences","Valeur","Qté","Simple","Double",null,"Amazones","Bas Fonds","Chaos","Elfes Noirs","Elfes Pro","Elfes Sylvains","Gobelins","Halflings","Hauts Elfes","Hommes-Lezards","Humains","Khemris","Morts-vivants","Nains","Nains du Chaos","Nécromantiques","Nordiques","Nurgle","Ogres","Orques","Pacte du Chaos","Skavens","Slanns","Vampires"]
[null,"Double",30000,null,null,"Amazones",50000,"Oui",null,null,"Amazones","Amazone 1","Trois-quart Ama",6,3,3,7,"Esquive",50000,16,"G","AFP",null,"Amazone 1","Bas Fonds 1","Chaos 1","Elfe Noir 1","Elfe 1","Elfe Sylvain 1","Gobelin 1","Hafling 1","Haut Elfe 1","Homme-Lézard 1","Humain 1","Khemri 1","Mort Vivant 1","Nain 1","Nain du Chaos 1","Nécromantique 1","Nordique 1","Nurgle 1","Ogre 1","Orque 1","Pacte du Chaos 1","Skaven 1","Slanns 1","Vampire 1"]
[null,"M",30000,null,null,"Chaos",60000,"Oui",null,null,"Amazones","Amazone 2","Lanceuse Ama",6,3,3,7,"Esquive, Passe",70000,2,"GP","AF",null,"Amazone 2","Bas Fonds 2","Chaos 2","Elfe Noir 2","Elfe 2","Elfe Sylvain 2","Gobelin 2","Hafling 2","Haut Elfe 2","Homme-Lézard 2","Humain 2","Khemri 2","Mort Vivant 2","Nain 2","Nain du Chaos 2","Nécromantique 2","Nordique 2","Nurgle 2","Ogre 2","Orque 2","Pacte du Chaos 2","Skaven 2","Slanns 2","Vampire 2"]
[null,"F",50000,null,null,"Elfes Noirs",50000,"Oui",null,null,"Amazones","Amazone 3","Receveuse Ama",6,3,3,7,"Esquive, Réception",70000,2,"AG","FP",null,"Amazone 3","Bas Fonds 3","Chaos 3","Elfe Noir 3","Elfe 3","Elfe Sylvain 3","Gobelin 3","Halfling 3","Haut Elfe 3","Homme-Lézard 3","Humain 3","Khemri 3","Mort Vivant 3","Nain 3","Nain du Chaos 3","Nécromantique 3","Nordique 3","Nurgle 3","Ogre 3","Orque 3","Pacte du Chaos 3","Skaven 3","Slanns 3","Vampire 3"]
[null,"AG",40000,null,null,"Elfes Pro",50000,"Oui",null,null,"Amazones","Amazone 4","Coureuse Ama",6,3,3,7,"Blocage, Esquive",90000,4,"FG","AP",null,"Amazone 4","Bas Fonds 4","Chaos 4","Elfe Noir 4","Elfe 4","Elfe Sylvain 4","Gobelin 4","Puggy Haleinedebacon","Haut Elfe 4","Homme-Lézard 4","Humain 4","Khemri 4","Mort Vivant 4","Nain 4","Nain du Chaos 4","Nécromantique 4","Nordique 4","Nurgle 4","Scrappa Malocrâne","Orque 4","Pacte du Chaos 4","Skaven 4","Slanns 4","Comte Luthor Von Drakenborg"]
[null,"AR",30000,null,null,"Elfes Sylvains",50000,"Oui",null,null,"Amazones","Amazone 5","Journalière Ama",6,3,3,7,"Esquive, Solitaire",50000,11,"G","AFP",null,"Amazone 5","Bas Fonds 5","Pét'Brik","Elfe Noir 5","Elfe 5","Elfe Sylvain 5","Gobelin 5","Racine Dutronc","Haut Elfe 5","Slibli","Humain 5","Khemri 5","Mort Vivant 5","Nain 5","Nain du Chaos 5","Nécromantique 5","Nordique 5","Nurgle 5","Nobbla La Teigne","Orque 5","Pacte du Chaos 5","Skaven 5","Slanns 5","Wilhelm Chaney "]
[null,null,null,null,null,"Gobelins",60000,"Oui",null,null,"Chaos","Chaos 1","Homme-Bête",6,3,3,8,"Cornes",60000,16,"FGM","AP",null,{"$f":"L147","v":"Glart Lavollée Jr"},"Bas Fonds 6","Minab","Elfe Noir 6","Prince Moranion","Elfe Sylvain 6","Gobelin 6","Morg 'n' Thorg","Prince Moranion","Hemlock ","Humain 6","*Ramtut III","Mort Vivant 6","Nain 6","Nobbla La Teigne","Nécromantique 6","Nordique 6","Max Eclaterate","Pét'Brik","Orque 6","Pacte du Chaos 6","Skaven 6",{"$f":"L147","v":"Glart Lavollée Jr"},{"$f":"L147","v":"Glart Lavollée Jr"}]
[null,null,null,null,null,"Halflings",60000,"Oui",null,null,"Chaos","Chaos 2","Guerrier du Chaos",5,4,3,9," ",100000,4,"FGM","AP",null,"Willow Teinrose","Bombeur Morvonez","Max Eclaterate","Horkon l'Ecorcheur","Jordell Fléchevive","Jordell Fléchevive","Gobelin 7","Willow Teinrose","Eldril Fendlabise",{"$f":"L147","v":"Glart Lavollée Jr"},"Zug la Bête","Hack l'Etripeur","Mort Vivant 7","Zara la Tueuse","Zzarg le Borgne","Wilhelm Chaney ","Nordique 7","Lewdgrip Fouet'bras","Minab","Orque 7","Pacte du Chaos 7","Hakflem Pointu","Hemlock ","Morg 'n' Thorg"]
[null,null,null,null,null,"Hauts Elfes",50000,"Oui",null,null,"Chaos","Chaos 3","Minotaure",5,5,2,8,"Animal Sauvage, Châtaigne, Crâne Epais,  Cornes, Frénésie, Solitaire",150000,1,"FM","AGP",null,"Roxanna Onglenoir","Nobbla La Teigne","Lewdgrip Fouet'bras","Eldril Fendlabise","Eldril Fendlabise","Eldril Fendlabise","Scrappa Malocrâne","Bertha Gropoing","Morg 'n' Thorg","Morg 'n' Thorg","Zara la Tueuse","Setekh ","Comte Luthor Von Drakenborg","Grim Crocsdacier","Grashnak Noirsabots","Ramtut III","Zara la Tueuse","Lord Borak","Morg 'n' Thorg","Scrappa Malocrâne","Pacte du Chaos 8","Cass'Crânes","Boutaïdo","Igor Le Fou"]
[null,null,null,null,null,"Hommes-Lezards",60000,"Oui",null,null,"Chaos","Chaos 4","Journalier Chaos",6,3,3,8,"Cornes, Solitaire",60000,11,"FGM","AP",null,"Bertha Gropoing","Skitter Pic-Pic","Lord Borak","Hubris Rakarth ","Hubris Rakarth ","Morg 'n' Thorg","Fungus le Cinglé","Zara la Tueuse","Dolfar Long'jambes","Boutaïdo","Puggy Haleinedebacon","Sinnedbad","Ramtut III","Barik Tirloin","Hthark le Defonceur","Comte Luthor Von Drakenborg",{"$f":"L147","v":"Glart Lavollée Jr"},"Grashnak Noirsabots","Bombeur Morvonez","Bombeur Morvonez","Bombeur Morvonez","Skitter Pic-Pic","Slibli","J. Oreillefine"]
[null,null,null,null,null,"Humains",50000,"Oui",null,null,"Elfes Noirs","Elfe Noir 1","Trois-quart EN",6,3,4,8," ",70000,16,"AG","FP",null,"Zara la Tueuse","Morg 'n' Thorg","Grashnak Noirsabots","Morg 'n' Thorg","Morg 'n' Thorg","Dolfar Long'jambes","Nobbla La Teigne",null,"Soaren Hautetour","Quetzal le Bondissant","Griff Oberwald","Humerus Carpal","Hack l'Etripeur","Blam' Eziasson","Rashnak lamedansledos ","Hack l'Etripeur","Blam' Eziasson","Pét'Brik","Bertha Gropoing","Ugroth Tranchegrots ","Zzarg le Borgne","Morg 'n' Thorg","Morg 'n' Thorg"]
[null,null,null,null,null,"Khemris",70000,"Non",null,null,"Elfes Noirs","Elfe Noir 2","Coureur EN",7,3,4,7,"Passe Rapide",80000,2,"AGP","F",null,"Morg 'n' Thorg","Glart Lavollée Jr","Morg 'n' Thorg","Ithaca Benoin","Dolfar Long'jambes","Willow Teinrose","Bombeur Morvonez",null,"Zara la Tueuse",null,{"$f":"L147","v":"Glart Lavollée Jr"},"Ithaca Benoin","Setekh ","Tronçonneuse Flint","Morg 'n' Thorg","Setekh ","Icepelt Hammerblow ","Minab",null,"Varag Mach'goule","Ugroth Tranchegrots ","Fezglitch","Quetzal le Bondissant"]
[null,null,null,null,null,"Morts-vivants",70000,"Non",null,null,"Elfes Noirs","Elfe Noir 3","Assassin",6,3,4,7,"Poignard, Poursuite",90000,2,"AG","FP",null,null,"Fezglitch",null,"Roxanna Onglenoir",null,"Zara la Tueuse","Bolgroth l'Ecrabouilleur",null,null,null,"Morg 'n' Thorg",null,"Sinnedbad","Morg 'n' Thorg",null,"J. Oreillefine","Wilhelm Chaney ","Morg 'n' Thorg",null,"Bolgroth l'Ecrabouilleur","Morg 'n' Thorg","Glart Lavollée Jr"]
[null,null,null,null,null,"Nains",50000,"Oui",null,null,"Elfes Noirs","Elfe Noir 4","Blitzer EN",7,3,4,8,"Blocage",100000,4,"AG","FP",null,null,null,null,null,null,null,"Morg 'n' Thorg",null,null,null,null,null,"J. Oreillefine",null,null,null,"Morg 'n' Thorg",null,null,"Morg 'n' Thorg","Igor Le Fou"]
[null,null,null,null,null,"Nains du Chaos",70000,"Oui",null,null,"Elfes Noirs","Elfe Noir 5","Furie",7,3,4,7,"Bond, Esquive, Frénésie",110000,2,"AG","FP",null,null,null,null,null,null,null,null,null,null,null,null,null,null,null,null,null,null,null,null,null,"Lewdgrip Fouet'bras"]
[null,null,null,null,null,"Nécromantiques",70000,"Non",null,null,"Elfes Noirs","Elfe Noir 6","Journalier EN",6,3,4,8,"Solitaire",70000,11,"AG","FP"]
[null,null,null,null,null,"Nordiques",60000,"Oui",null,null,"Elfes Pro","Elfe 1","Trois-quart EP",6,3,4,7," ",60000,16,"AG","FP"]
[null,null,null,null,null,"Nurgle",70000,"Non",null,null,"Elfes Pro","Elfe 2","Passeur EP",6,3,4,7,"Passe",70000,2,"AGP","F"]
[null,null,null,null,null,"Ogres",70000,"Oui",null,null,"Elfes Pro","Elfe 3","Receveur EP",8,3,4,7,"Nerfs d'Acier, Réception",100000,4,"AG","FP"]
[null,null,null,null,null,"Orques",60000,"Oui",null,null,"Elfes Pro","Elfe 4","Blitzer EP",7,3,4,8,"Blocage, Glissade Contrôlée",110000,2,"AG","FP"]
[null,null,null,null,null,"Skavens",60000,"Oui",null,null,"Elfes Pro","Elfe 5","Journalier EP",6,3,4,7,"Solitaire",60000,11,"AG","FP"]
[null,null,null,null,null,"Vampires",70000,"Oui",null,null,"Elfes Sylvains","Elfe Sylvain 1","Trois-quart ES",7,3,4,7," ",70000,16,"AG","FP"]
[null,null,null,null,null,"Bas Fonds",70000,"Oui",null,null,"Elfes Sylvains","Elfe Sylvain 2","Passeur ES",7,3,4,7,"Passe",90000,2,"AGP","F"]
[null,null,null,null,null,"Pacte du Chaos",70000,"Oui",null,null,"Elfes Sylvains","Elfe Sylvain 3","Receveur ES",8,2,4,7,"Esquive, Réception, Sprint",90000,4,"AG","FP"]
[null,null,null,null,null,"Slanns",50000,"Oui",null,null,"Elfes Sylvains","Elfe Sylvain 4","Danseur  de Guerre",8,3,4,7,"Blocage, Esquive, Saut",120000,2,"AG","FP"]
[null,"A",null,"F",null,"G",null,null,"P",null,"Elfes Sylvains","Elfe Sylvain 5","Homme-Arbre",2,6,1,10,"Châtaigne, Costaud, Crâne Epais, Lancer de Coéquipier, Solitaire, Prendre Racines, Stabilité",120000,1,"F","AGP"]
[null,"--Agilité--",null,"--Force--",null,"--Général--",null,null,"--Passe--",null,"Elfes Sylvains","Elfe Sylvain 6","Journalier ES",7,3,4,7,"Solitaire",70000,11,"AG","FP"]
[null,"Bond",null,"Blocage Multiple",null,"Anticipation",null,null,"Chef",null,"Gobelins","Gobelin 1","Gobelin",6,2,3,7,"Esquive, Minus, Poids Plume",40000,16,"A","FGP"]
[null,"Equilibre",null,"Châtaigne",null,"Arracher le Ballon",null,null,"La Main de Dieu",null,"Gobelins","Gobelin 2","Bombardier",6,2,3,7,"Arme Secrète, Bombardier, Esquive, Minus",40000,1,"A","FGP"]
[null,"Esquive",null,"Costaud",null,"Blocage",null,null,"Lancer Précis",null,"Gobelins","Gobelin 3","Baton à Ressort",7,2,3,7,"Esquive, Minus, Saut, Très Longues Jambes",70000,1,"A","FGP"]
[null,"Glissade Contrôlée",null,"Crâne Epais",null,"Blocage de Passe",null,null,"Nerfs d'Acier",null,"Gobelins","Gobelin 4","Barjot",6,2,3,7,"Arme Secrète, Manchot, Minus, Tronçonneuse",40000,1,"A","FGP"]
[null,"Plongeon",null,"Ecrasement",null,"Dextérité",null,null,"Passe",null,"Gobelins","Gobelin 5","Fanatique",3,7,3,7,"Arme Secrète, Chaîne et Boulet, Manchot, Minus",70000,1,"F","AGP"]
[null,"Réception",null,"Esquive en Force",null,"Frappe Précise",null,null,"Passe rapide",null,"Gobelins","Gobelin 6","Troll ",4,5,1,9,"Châtaigne, Gros Débile, Lancer de Coéquipier, Solitaire, Régénération, Toujours Affamé",110000,2,"F","AGP"]
[null,"Saut",null,"Garde",null,"Frénésie",null,null,"Précision",null,"Gobelins","Gobelin 7","Journalier Gobelin",6,2,3,7,"Esquive, Minus, Solitaire, Poids Plume",40000,11,"A","FGP"]
[null,"Sournois",null,"Juggernaut",null,"Intrépidité",null,null,null,null,"Halflings","Hafling 1","Halfling",5,2,3,6," Esquive, Minus, Poids Plume",30000,16,"A","FGP"]
[null,"Sprint",null,"Projection",null,"Joueur Vicieux",null,null,null,null,"Halflings","Hafling 2","Homme-Arbre ",2,6,1,10,"Châtaigne, Costaud, Crâne Epais, Lancer de Coéquipier, Prendre Racines, Stabilité",120000,2,"F","AGP"]
[null,"Tacle Plongeant",null,"Stabilité",null,"Lutte",null,null,null,null,"Halflings","Halfling 3","Journalier Halfling",5,2,3,6,"Esquive, Minus, Solitaire, Poids Plume",30000,11,"A","FGP"]
[null,null,null,null,null,"Parade",null,null,null,null,"Hauts Elfes","Haut Elfe 1","Trois-quart Haut Elfe",6,3,4,8," ",70000,16,"AG","FP"]
[null,null,null,null,null,"Poursuite",null,null,null,null,"Hauts Elfes","Haut Elfe 2","Passeur Haut Elfe",6,3,4,8,"Lancer Précis, Passe",90000,2,"AGP","F"]
[null,"AF",null,"FG",null,"Pro",null,null,null,null,"Hauts Elfes","Haut Elfe 3","Receveur Haut Elfe",8,3,4,7,"Réception",90000,4,"AG","FP"]
[null,"--Agilité--",null,"--Force--",null,"Tacle",null,null,null,null,"Hauts Elfes","Haut Elfe 4","Blitzer Haut Elfe",7,3,4,8,"Blocage",100000,2,"AG","FP"]
[null,"Bond",null,"Blocage Multiple",null,null,null,null,null,null,"Hauts Elfes","Haut Elfe 5","Journalier Haut Elfe",6,3,4,8,"Solitaire",70000,11,"AG","FP"]
[null,"Equilibre",null,"Châtaigne",null,null,null,null,null,null,"Hommes-Lezards","Homme-Lézard 1","Skink",8,2,3,7,"Esquive, Minus",60000,16,"A","FGP"]
[null,"Esquive",null,"Costaud",null,"GM",null,null,null,null,"Hommes-Lezards","Homme-Lézard 2","Saurus",6,4,1,9," ",80000,6,"FG","AP"]
[null,"Glissade Contrôlée",null,"Crâne Epais",null,"--Général--",null,null,null,null,"Hommes-Lezards","Homme-Lézard 3","Kroxigor",6,5,1,9,"Cerveau Lent, Châtaigne, Crâne Epais, Solitaire, Queue Préhensile",140000,1,"F","AGP"]
[null,"Plongeon",null,"Ecrasement",null,"Anticipation",null,null,null,null,"Hommes-Lezards","Homme-Lézard 4","Journalier Skink",8,2,3,7,"Esquive, Minus, Solitaire",60000,11,"A","FGP"]
[null,"Réception",null,"Esquive en Force",null,"Arracher le Ballon",null,null,null,null,"Humains","Humain 1","Trois-quart Humain",6,3,3,8," ",50000,16,"G","AFP"]
[null,"Saut",null,"Garde",null,"Blocage",null,null,null,null,"Humains","Humain 2","Receveur Humain",8,2,3,7,"Esquive, Réception",70000,4,"AG","FP"]
[null,"Sournois",null,"Juggernaut",null,"Blocage de Passe",null,null,null,null,"Humains","Humain 3","Passeur Humain",6,3,3,8,"Dextérité, Passe",70000,2,"GP","AF"]
[null,"Sprint",null,"Projection",null,"Dextérité",null,null,null,null,"Humains","Humain 4","Blitzer Humain",7,3,3,8,"Blocage",90000,4,"FG","AP"]
[null,"Tacle Plongeant",null,"Stabilité",null,"Frappe Précise",null,null,"Caractéristiques",null,"Humains","Humain 5","Ogre Humain",5,5,2,9,"Cerveau Lent, Châtaigne, Crâne Epais, Lancer de Coéquipier, Solitaire",140000,1,"F","AGP"]
[null,null,null,null,null,"Frénésie",null,null,null,null,"Humains","Humain 6","Journalier Humain",6,3,3,8,"Solitaire",50000,11,"G","AFP"]
[null,"--Force--",null,"--Général--",null,"Intrépidité",null,null,"Armure",null,"Khemris","Khemri 1","Squelette Khemri",5,3,2,7,"Crâne Epais, Régénération",40000,16,"G","AFP"]
[null,"Blocage Multiple",null,"Anticipation",null,"Joueur Vicieux",null,null,"Mouvement",null,"Khemris","Khemri 2","Thro-Ra",6,3,2,7,"Dextérité, Passe, Régénération",70000,2,"GP","AF"]
[null,"Châtaigne",null,"Arracher le Ballon",null,"Lutte",null,null,"Agilité",null,"Khemris","Khemri 3","Blitz-Ra",6,3,2,8,"Blocage, Régénération",90000,2,"FG","AP"]
[null,"Costaud",null,"Blocage",null,"Parade",null,null,"Force",null,"Khemris","Khemri 4","Gardien des Tombes",4,5,1,9,"Décomposition, Régénération",100000,4,"F","AGP"]
[null,"Crâne Epais",null,"Blocage de Passe",null,"Poursuite",null,null,null,null,"Khemris","Khemri 5","Journalier Khemri",5,3,2,7,"Solitaire, Crâne Epais, Régénération",40000,11,"G","AFP"]
[null,"Ecrasement",null,"Dextérité",null,"Pro",null,null,"Blessures",null,"Morts-vivants","Mort Vivant 1","Squelette MV",5,3,2,7,"Crâne Epais, Régénération",40000,16,"G","AFP"]
[null,"Esquive en Force",null,"Frappe Précise",null,"Tacle",null,null,null,null,"Morts-vivants","Mort Vivant 2","Zombie MV",4,3,2,8,"Régénération",40000,16,"G","AFP"]
[null,"Garde",null,"Frénésie",null,null,null,null,"Match d'arrêt",null,"Morts-vivants","Mort Vivant 3","Ghoule MV",7,3,3,7,"Esquive",70000,4,"AG","FP"]
[null,"Juggernaut",null,"Intrépidité",null,"--Mutation--",null,null,"Persistante",null,"Morts-vivants","Mort Vivant 4","Revenant MV",6,3,3,8,"Blocage, Régénération",90000,2,"FG","AP"]
[null,"Projection",null,"Joueur Vicieux",null,"Bras Supplémentaires",null,null,"Mouvement",null,"Morts-vivants","Mort Vivant 5","Momie MV",3,5,1,9,"Châtaigne, Régénération",120000,2,"F","AGP"]
[null,"Stabilité",null,"Lutte",null,"Cornes",null,null,"Armure",null,"Morts-vivants","Mort Vivant 6","Journalier MV Squel",5,3,2,7,"Solitaire, Crâne Epais, Régénération",40000,11,"G","AFP"]
[null,null,null,"Parade",null,"Deux Têtes",null,null,"Agilité",null,"Morts-vivants","Mort Vivant 7","Journalier MV Zom",4,3,2,8,"Solitaire, Régénération",40000,11,"G","AFP"]
[null,null,null,"Poursuite",null,"Main Démesurée",null,null,"Force",null,"Nains","Nain 1","Bloqueur",4,3,2,9,"Blocage, Crâne Epais, Tacle",70000,16,"FG","AP"]
[null,"AFG",null,"Pro",null,"Pince/Griffes",null,null,"Mort",null,"Nains","Nain 2","Coureur",6,3,3,8,"Crâne Epais, Dextérité",80000,2,"GP","AF"]
[null,"--Agilité--",null,"Tacle",null,"Présence  Perturbante",null,null,"Retraité",null,"Nains","Nain 3","Blitzer",5,3,3,9,"Blocage, Crâne Epais",80000,2,"FG","AP"]
[null,"Bond",null,null,null,"Queue Préhensile",null,null,null,null,"Nains","Nain 4","Tueur de Trolls",5,3,2,8,"Blocage, Crâne Epais, Frénésie, Intrépidité",90000,2,"FG","AP"]
[null,"Equilibre",null,null,null,"Répulsion",null,null,null,null,"Nains","Nain 5","Roule-Mort",4,7,1,10,"Arme Secrète, Châtaigne, Esquive en Force, Joueur Vicieux, Juggernaut, Manchot, Stabilité, Solitaire",160000,1,"F","AGP"]
[null,"Esquive",null,"FGM",null,"Tentacules",null,null,null,null,"Nains","Nain 6","Journalier Nain",4,3,2,9,"Blocage, Crâne Epais, Solitaire, Tacle",70000,11,"FG","AP"]
[null,"Glissade Contrôlée",null,"--Force--",null,"Très Longues jambes",null,null,null,null,"Nains du Chaos","Nain du Chaos 1","Hobgobelin",6,3,3,7," ",40000,16,"G","AFP"]
[null,"Plongeon",null,"Blocage Multiple",null,null,null,null,null,null,"Nains du Chaos","Nain du Chaos 2","Bloqueur NDC",4,3,2,9,"Blocage, Crâne Epais, Tacle",70000,6,"FG","AMP"]
[null,"Réception",null,"Châtaigne",null,null,null,null,null,null,"Nains du Chaos","Nain du Chaos 3","Centaure Taureau",6,4,2,9,"Crâne Epais, Equilibre, Sprint",130000,2,"FG","AP"]
[null,"Saut",null,"Costaud",null,"GP",null,null,null,null,"Nains du Chaos","Nain du Chaos 4","Minotaure ",5,5,2,8,"Animal Sauvage, Châtaigne, Crâne Epais,  Cornes, Frénésie, Solitaire",150000,1,"F","AGMP"]
[null,"Sournois",null,"Crâne Epais",null,"--Général--",null,null,null,null,"Nains du Chaos","Nain du Chaos 5","Journalier Hob",6,3,3,7,"Solitaire",40000,11,"G","AFP"]
[null,"Sprint",null,"Ecrasement",null,"Anticipation",null,null,null,null,"Nécromantiques","Nécromantique 1","Zombie Nécro",4,3,2,8,"Régénération",40000,16,"G","AFP"]
[null,"Tacle Plongeant",null,"Esquive en Force",null,"Arracher le Ballon",null,null,null,null,"Nécromantiques","Nécromantique 2","Ghoule Nécro",7,3,3,7,"Esquive",70000,2,"AG","FP"]
[null,null,null,"Garde",null,"Blocage",null,null,null,null,"Nécromantiques","Nécromantique 3","Revenant Nécro",6,3,3,8,"Blocage, Régénération",90000,2,"FG","AP"]
[null,"--Force--",null,"Juggernaut",null,"Blocage de Passe",null,null,null,null,"Nécromantiques","Nécromantique 4","Golem de Chair",4,4,2,9,"Crâne Epais, Régénération, Stabilité",110000,2,"FG","AP"]
[null,"Blocage Multiple",null,"Projection",null,"Dextérité",null,null,null,null,"Nécromantiques","Nécromantique 5","Loup-Garou",8,3,3,8,"Frénésie, Griffes, Régénération",120000,2,"AG","FP"]
[null,"Châtaigne",null,"Stabilité",null,"Frappe Précise",null,null,null,null,"Nécromantiques","Nécromantique 6","Journalier Nécro",4,3,2,8,"Solitaire, Régénération",40000,11,"G","AFP"]
[null,"Costaud",null,null,null,"Frénésie",null,null,null,null,"Nordiques","Nordique 1","Trois-quart Nord",6,3,3,7,"Blocage",50000,16,"G","AFP"]
[null,"Crâne Epais",null,"--Général--",null,"Intrépidité",null,null,null,null,"Nordiques","Nordique 2","Passeur Nord",6,3,3,7,"Blocage, Passe",70000,2,"GP","AF"]
[null,"Ecrasement",null,"Anticipation",null,"Joueur Vicieux",null,null,null,null,"Nordiques","Nordique 3","Coureur Nord",7,3,3,7,"Blocage, Intrépidité",90000,2,"AG","FP"]
[null,"Esquive en Force",null,"Arracher le Ballon",null,"Lutte",null,null,null,null,"Nordiques","Nordique 4","Beserker",6,3,3,7,"Blocage, Bond, Frénésie",90000,2,"FG","AP"]
[null,"Garde",null,"Blocage",null,"Parade",null,null,null,null,"Nordiques","Nordique 5","Ulfwerener",6,4,2,8,"Frénésie",110000,2,"FG","AP"]
[null,"Juggernaut",null,"Blocage de Passe",null,"Poursuite",null,null,null,null,"Nordiques","Nordique 6","Troll des Neiges",5,5,1,8,"Animal Sauvage, Crâne Epais, Frénésie, Griffes, Solitaire, Présence Perturbante",140000,1,"F","AGP"]
[null,"Projection",null,"Dextérité",null,"Pro",null,null,null,null,"Nordiques","Nordique 7","Journalier Nord",6,3,3,7,"Blocage, Solitaire",50000,11,"G","FGP"]
[null,"Stabilité",null,"Frappe Précise",null,"Tacle",null,null,null,null,"Nurgle","Nurgle 1","Pourri",5,3,3,8,"Décomposition, Pourriture de Nurgle",40000,16,"GM","AFP"]
[null,null,null,"Frénésie",null,null,null,null,null,null,"Nurgle","Nurgle 2","Pestigor",6,3,3,8,"Cornes, Pourriture de Nurgle, Régénération",80000,4,"FGM","AP"]
[null,"--Général--",null,"Intrépidité",null,"--Passe--",null,null,null,null,"Nurgle","Nurgle 3","Guerrier de Nurgle",4,4,2,9,"Pourriture de Nurgle, Présence Perturbante, Régénération, Répulsion",110000,4,"FGM","AP"]
[null,"Anticipation",null,"Joueur Vicieux",null,"Chef",null,null,null,null,"Nurgle","Nurgle 4","Bête de Nurgle",4,5,1,9,"Châtaigne, Gros Débile, Solitaire, Pourriture de Nurgle, Présence Perturbante, Régénération, Répulsion, Tentacules",140000,1,"F","AGMP"]
[null,"Arracher le Ballon",null,"Lutte",null,"La Main de Dieu",null,null,null,null,"Nurgle","Nurgle 5","Journalier Nurgle",5,3,3,8,"Décomposition, Solitaire, Pourriture de Nurgle",40000,11,"GM","AFP"]
[null,"Blocage",null,"Parade",null,"Lancer Précis",null,null,null,null,"Ogres","Ogre 1","Snotling",5,1,3,5,"Esquive, Glissade Contrôlée, Microbe, Minus, Poids Plume",20000,16,"A","FGP"]
[null,"Blocage de Passe",null,"Poursuite",null,"Nerfs d'Acier",null,null,null,null,"Ogres","Ogre 2","Ogre ",5,5,2,9,"Cerveau Lent, Châtaigne, Crâne Epais, Lancer de Coéquipier",140000,6,"F","AGP"]
[null,"Dextérité",null,"Pro",null,"Passe",null,null,null,null,"Ogres","Ogre 3","Journalier Snot",5,1,3,5,"Esquive, Glissade Contrôlée, Microbe, Minus, Solitaire, Poids Plume",20000,11,"A","FGP"]
[null,"Frappe Précise",null,"Tacle",null,"Passe rapide",null,null,null,null,"Orques","Orque 1","Trois-quart Orc",5,3,3,9," ",50000,16,"G","AFP"]
[null,"Frénésie",null,null,null,"Précision",null,null,null,null,"Orques","Orque 2","Gobelin",6,2,3,7,"Esquive, Minus, Poids Plume",40000,4,"A","FGP"]
[null,"Intrépidité",null,"--Mutation--",null,null,null,null,null,null,"Orques","Orque 3","Passeur Orc",5,3,3,8,"Dextérité, Passe",70000,2,"GP","AF"]
[null,"Joueur Vicieux",null,"Bras Supplémentaires",null,null,null,null,null,null,"Orques","Orque 4","Orque Noir",4,4,2,9," ",80000,4,"FG","AP"]
[null,"Lutte",null,"Cornes",null,"FGMP",null,null,null,null,"Orques","Orque 5","Blitzer Orc",6,3,3,9,"Blocage",80000,4,"FG","AP"]
[null,"Parade",null,"Deux Têtes",null,"--Force--",null,null,null,null,"Orques","Orque 6","Troll",4,5,1,9,"Châtaigne, Gros Débile, Lancer de Coéquipier, Solitaire, Régénération, Toujours Affamé",110000,1,"F","AGP"]
[null,"Poursuite",null,"Main Démesurée",null,"Blocage Multiple",null,null,null,null,"Orques","Orque 7","Journalier Orc",5,3,3,9,"Solitaire",50000,11,"G","AFP"]
[null,"Pro",null,"Pince/Griffes",null,"Châtaigne",null,null,null,null,"Skavens","Skaven 1","Trois-quart Skav",7,3,3,7," ",50000,16,"G","AFMP"]
[null,"Tacle",null,"Présence  Perturbante",null,"Costaud",null,null,null,null,"Skavens","Skaven 2","Passeur Skav",7,3,3,7,"Dextérité, Passe",70000,2,"GP","AFM"]
[null,null,null,"Queue Préhensile",null,"Crâne Epais",null,null,null,null,"Skavens","Skaven 3","Coureur d'Egouts",9,2,4,7,"Esquive",80000,4,"AG","FMP"]
[null,null,null,"Répulsion",null,"Ecrasement",null,null,null,null,"Skavens","Skaven 4","Blitzer Skav",7,3,3,8,"Blocage",90000,2,"FG","AMP"]
[null,"AFM",null,"Tentacules",null,"Esquive en Force",null,null,null,null,"Skavens","Skaven 5","Rat Ogre",6,5,2,8,"Animal Sauvage, Châtaigne, Frénésie, Solitaire, Queue Préhensile",150000,1,"F","AGMP"]
[null,"--Agilité--",null,"Très Longues jambes",null,"Garde",null,null,null,null,"Skavens","Skaven 6","Journalier Skav",7,3,3,7,"Solitaire",50000,11,"G","AFM"]
[null,"Bond",null,null,null,"Juggernaut",null,null,null,null,"Vampires","Vampire 1","Serviteur",6,3,3,7," ",40000,16,"G","AFP"]
[null,"Equilibre",null,null,null,"Projection",null,null,null,null,"Vampires","Vampire 2","Vampire",6,4,4,8,"Regard Hypnotique, Régénération, Soif de Sang",110000,6,"AFG","P"]
[null,"Esquive",null,"FGP",null,"Stabilité",null,null,null,null,"Vampires","Vampire 3","Journalier Serv",6,3,3,7,"Solitaire",40000,11,"G","AFP"]
[null,"Glissade Contrôlée",null,"--Force--",null,null,null,null,null,null,"Pacte du Chaos","Pacte du chaos 1","Maraudeurs",6,3,3,8," ",50000,12,"FGMP","A"]
[null,"Plongeon",null,"Blocage Multiple",null,"--Général--",null,null,null,null,"Pacte du Chaos","Pacte du chaos 2","Renégat Gobelin",6,2,3,7,"Animosité, Esquive, Minus, Poids Plume",40000,1,"AM","FGP"]
[null,"Réception",null,"Châtaigne",null,"Anticipation",null,null,null,null,"Pacte du Chaos","Pacte du chaos 3","Renégat Skaven",7,3,3,7,"Animosité",50000,1,"GM","AFP"]
[null,"Saut",null,"Costaud",null,"Arracher le Ballon",null,null,null,null,"Pacte du Chaos","Pacte du chaos 4","Renégat Elfe Noir",6,3,4,8,"Animosité",70000,1,"AGM","FP"]
[null,"Sournois",null,"Crâne Epais",null,"Blocage",null,null,null,null,"Pacte du Chaos","Pacte du chaos 5","Troll du Chaos",4,5,1,9,"Solitaire, Toujours affamé, Châtaigne, Gros Débile, Régénération, Lancer un coéquipier",110000,1,"F","AGMP"]
[null,"Sprint",null,"Ecrasement",null,"Blocage de Passe",null,null,null,null,"Pacte du Chaos","Pacte du chaos 6","Ogre du Chaos",5,5,2,9,"Solitaire, Cerveau Lent, Châtaigne, Crâne Epais, Lancer un coéquipier",140000,1,"F","AGMP"]
[null,"Tacle Plongeant",null,"Esquive en Force",null,"Dextérité",null,null,null,null,"Pacte du Chaos","Pacte du chaos 7","Minotaure du Chaos",5,5,2,8,"Solitaire, Frénésie, Cornes, Châtaigne, Crâne Epais, Animal Sauvage",150000,1,"F","AGMP"]
[null,null,null,"Garde",null,"Frappe Précise",null,null,null,null,"Pacte du Chaos","Pacte du chaos 8","Journalier Mar",6,3,3,8,"Solitaire",50000,11,"FGMP","A"]
[null,"--Force--",null,"Juggernaut",null,"Frénésie",null,null,null,null,"Slanns","Slanns 1","Trois-quart Slanns",6,3,3,8,"Saut, Très Longues Jambes",60000,16,"G","AFP"]
[null,"Blocage Multiple",null,"Projection",null,"Intrépidité",null,null,null,null,"Slanns","Slanns 2","Receveurs Slanns",7,2,4,7,"Plongeon, Saut, Très Longues Jambes",80000,4,"AG","FP"]
[null,"Châtaigne",null,"Stabilité",null,"Joueur Vicieux",null,null,null,null,"Slanns","Slanns 3","Blitzeurs Slanns",7,3,3,8,"Tacle Plongeant, Bond, Saut, Très Longues Jambes",110000,4,"AFG","P"]
[null,"Costaud",null,null,null,"Lutte",null,null,null,null,"Slanns","Slanns 4","Kroxigor Slanns",6,5,1,9,"Solitaire, Cerveau Lent, Châtaigne, Queue Préhensile, Crâne Epais",140000,1,"F","AGP"]
[null,"Crâne Epais",null,"--Général--",null,"Parade",null,null,null,null,"Slanns","Slanns 5","Journalier Slanns",6,3,3,8,"Saut, Très Longues Jambes, Solitaire",60000,11,"G","AFP"]
[null,"Ecrasement",null,"Anticipation",null,"Poursuite",null,null,null,null,"Bas fonds","Bas fonds 1","Gobelins des Bas Fonds",6,2,3,7,"Poids Plume, Esquive, Minus",40000,12,"AM","FGP"]
[null,"Esquive en Force",null,"Arracher le Ballon",null,"Pro",null,null,null,null,"Bas fonds","Bas fonds 2","Trois-quart Skav Bas Fonds",7,3,3,7,"Animosité",50000,2,"GM","AFP"]
[null,"Garde",null,"Blocage",null,"Tacle",null,null,null,null,"Bas fonds","Bas fonds 3","Lanceurs Skav Bas Fonds",7,3,3,7,"Animosité, Passe, Dextérité",70000,2,"GMP","AF"]
[null,"Juggernaut",null,"Blocage de Passe",null,null,null,null,null,null,"Bas fonds","Bas fonds 4","Blitzers Skav Bas Fonds",7,3,3,8,"Animosité, Blocage",90000,2,"FGM","AP"]
[null,"Projection",null,"Dextérité",null,"--Mutation--",null,null,null,null,"Bas fonds","Bas fonds 5","Troll de Malepierre",4,5,1,9,"Solitaire, Toujours affamé, Châtaigne, Gros Débile, Régénération, Lancer un coéquipier",110000,1,"FM","AGP"]
[null,"Stabilité",null,"Frappe Précise",null,"Bras Supplémentaires",null,null,null,null,"Bas fonds","Bas fonds 6","Journalier Gobelin",6,2,3,7,"Poids Plume, Esquive, Minus, Solitaire",40000,11,"AM","FGP"]
[null,null,null,"Frénésie",null,"Cornes",null,null,null,null,"STAR","Barik Tirloin","Barik Tirloin",6,3,3,8,"Arme Secrète, Costaud, Crâne Epais, Dextérité, La Main de Dieu, Solitaire, Passe",60000,1]
[null,"--Mutation--",null,"Intrépidité",null,"Deux Têtes",null,null,null,null,"STAR","Bertha GroPoing","Bertha GroPoing",6,5,2,9,"Solitaire, Cerveau Lent, Esquive, Châtaigne, Crâne Epais, Lancer un coéquipier, Esquive en Force",290000,1]
[null,"Bras Supplémentaires",null,"Joueur Vicieux",null,"Main Démesurée",null,null,null,null,"STAR","Blam' Eziasson","Blam' Eziasson",4,3,2,9,"Arme Secrète, Blocage, Bombardier, Crâne Epais, Manchot, Solitaire, Précision",60000,1]
[null,"Cornes",null,"Lutte",null,"Pince/Griffes",null,null,null,null,"STAR","Bolgroth l'Ecrabouilleur","Bolgroth l'Ecrabouilleur",4,6,1,9,"Solitaire, Châtaigne, Lancer un Coéquipier, Projection, Régénération",270000,1]
[null,"Deux Têtes",null,"Parade",null,"Présence  Perturbante",null,null,null,null,"STAR","Bombeur Morvonez","Bombeur Morvonez",6,2,3,7,"Arme Secrète, Bombardier, Esquive, Manchot, Minus, Solitaire, Précision, Poids Plume",60000,1]
[null,"Main Démesurée",null,"Poursuite",null,"Queue Préhensile",null,null,null,null,"STAR","Boutaïdo","Boutaïdo",8,3,3,8,"Solitaire, Réception, Tacle Plongeant, Bond, Saut, Blocage de Passe, Poursuite, Très Longues Jambes",220000,1]
[null,"Pince/Griffes",null,"Pro",null,"Répulsion",null,null,null,null,"STAR","Cass'Crânes","Cass'Crânes",6,6,3,8,"Châtaigne, Frénésie, Solitaire, Queue Préhensile",340000,1]
[null,"Présence  Perturbante",null,"Tacle",null,"Tentacules",null,null,null,null,"STAR","Comte Luthor Von Drakenborg","Comte Luthor Von Drakenborg",6,5,4,9,"Blocage, Esquive, Solitaire, Regard Hypnotique, Régénération",390000,1]
[null,"Queue Préhensile",null,null,null,"Très Longues jambes",null,null,null,null,"STAR","Dolfar Long'jambes","Dolfar Long'jambes",7,3,4,7,"Solitaire, Plongeon, La Main de Dieur, Anticipation, Blocage de Passe, Frappe Précise",150000,1]
[null,"Répulsion",null,"--Passe--",null,null,null,null,null,null,"STAR","Eldril Fendlabise","Eldril Fendlabise",8,3,4,7,"Blocage de Passe, Esquive, Nerfs d'Acier, Solitaire, Réception, Regard Hypnotique",170000,1]
[null,"Tentacules",null,"Chef",null,"--Passe--",null,null,null,null,"STAR","Fezglitch","Fezglitch",4,7,3,7,"Solitaire, Chaîne & Boulet, Présence Perturbante, Répulsion, Manchot, Arme Secrète",100000,1]
[null,"Très Longues jambes",null,"La Main de Dieu",null,"Chef",null,null,null,null,"STAR","Fungus le Cinglé","Fungus le Cinglé",4,7,3,7,"Arme Secrète, Chaine et Boulet, Châtaigne, Manchot, Minus, Solitaire",80000,1]
[null,null,null,"Lancer Précis",null,"La Main de Dieu",null,null,null,null,"STAR","Glart Lavollée Jr","Glart Lavollée Jr",7,4,3,8,"Solitaire, Blocage, Griffes, Juggernaut",210000,1]
[null,null,null,"Nerfs d'Acier",null,"Lancer Précis",null,null,null,null,"STAR","Grashnak Noirsabots","Grashnak Noirsabots",6,6,2,8,"Châtaigne, Cornes, Crâne Epais, Frénésie, Solitaire",310000,1]
[null,"AFMP",null,"Passe",null,"Nerfs d'Acier",null,null,null,null,"STAR","Griff Oberwald","Griff Oberwald",8,4,4,8,"Blocage, Equilibre, Esquive, Parade, Solitaire, Sprint",320000,1]
[null,"--Agilité--",null,"Passe rapide",null,"Passe",null,null,null,null,"STAR","Grim Crocsdacier","Grim Crocsdacier",5,4,3,8,"Blocage, Châtaigne, Crâne Epais, Frénésie, Intrépidité, Solitaire",220000,1]
[null,"Bond",null,"Précision",null,"Passe rapide",null,null,null,null,"STAR","Hack l'Etripeur","Hack l'Etripeur",6,3,2,7,"Arme Secrète, Glissade Contrôlée, Manchot, Solitaire, Régénération, Tronçonneuse",90000,1]
[null,"Equilibre",null,null,null,"Précision",null,null,null,null,"STAR","Hakflem Pointu","Hakflem Pointu",9,3,4,7,"Bras Supplémentaire, Deux Têtes, Esquive, Solitaire, Queue Préhensile",200000,1]
[null,"Esquive",null,null,null,null,null,null,null,null,"STAR","Helmut Wulf ","Helmut Wulf ",6,3,3,8,"Arme Secrète, Manchot, Solitaire, Tronçonneuse, Stabilité",80000,1]
[null,"Glissade Contrôlée",null,"FM",null,null,null,null,null,null,"STAR","Hemlock ","Hemlock ",8,2,3,7,"Blocage, Bond, Esquive, Glissade Contrôlée, Minus, Solitaire, Poignard",170000,1]
[null,"Plongeon",null,"--Force--",null,"AM",null,null,null,null,"STAR","Horkon l'Ecorcheur","Horkon l'Ecorcheur",7,3,4,7,"Blocage Multiple, Esquive, Solitaire, Poignard, Poursuite, Saut",210000,1]
[null,"Réception",null,"Blocage Multiple",null,"--Agilité--",null,null,null,null,"STAR","Hthark le Defonceur","Hthark le Defonceur",6,5,2,9,"Blocage, Crâne Epais, Equilibre, Esquive en Force, Juggernaut, Solitaire, Sprint",310000,1]
[null,"Saut",null,"Châtaigne",null,"Bond",null,null,null,null,"STAR","Hubris Rakarth ","Hubris Rakarth ",7,4,4,8,"Arracher le Ballon, Blocage, Bond, Châtaigne, Joueur Vicieux, Solitaire",260000,1]
[null,"Sournois",null,"Costaud",null,"Equilibre",null,null,null,null,"STAR","Humerus Carpal","Humerus Carpal",7,2,3,7,"Solitaire, Réception, Esquive, Régénération, Nerfs d'Acier",130000,1]
[null,"Sprint",null,"Crâne Epais",null,"Esquive",null,null,null,null,"STAR","Icepelt Hammerblow ","Icepelt Hammerblow ",5,6,1,8,"Châtaigne, Frénésie, Griffes, Solitaire, Présence Perturbante, Régénération",330000,1]
[null,"Tacle Plongeant",null,"Ecrasement",null,"Glissade Contrôlée",null,null,null,null,"STAR","Igor Le Fou","Igor Le Fou",6,3,3,8,"Solitaire, Intrépidité, Régénération, Crâne Epais",120000,1]
[null,null,null,"Esquive en Force",null,"Plongeon",null,null,null,null,"STAR","Ithaca Benoin","Ithaca Benoin",7,3,3,7,"Solitaire, Précision, Passe Rapide, Nerfs d'Acier, Passe, Régénération, Dextérité",220000,1]
[null,"--Force--",null,"Garde",null,"Réception",null,null,null,null,"STAR","J. Oreillefine","J. Oreillefine",8,3,3,7,"Solitaire, Réception, Plongeon, Esquive, Sprint",180000,1]
[null,"Blocage Multiple",null,"Juggernaut",null,"Saut",null,null,null,null,"STAR","Jordell Fléchevive","Jordell Fléchevive",8,3,5,7,"Blocage, Esquive, Glissade Contrôlée, Solitaire, Plongeon, Saut",230000,1]
[null,"Châtaigne",null,"Projection",null,"Sournois",null,null,null,null,"STAR","Lewdgrip Fouet'bras","Lewdgrip Fouet'bras",6,3,3,9,"Solitaire, Passe, Costaud, Dextérité, Tentacules",150000,1]
[null,"Costaud",null,"Stabilité",null,"Sprint",null,null,null,null,"STAR","Lord Borak","Lord Borak",5,5,3,9,"Blocage, Châtaigne, Joueur Vicieux, Solitaire",270000,1]
[null,"Crâne Epais",null,null,null,"Tacle Plongeant",null,null,null,null,"STAR","Max Eclaterate","Max Eclaterate",5,4,3,8,"Arme Secrète, Manchot, Solitaire, Tronçonneuse",100000,1]
[null,"Ecrasement",null,"--Mutation--",null,null,null,null,null,null,"STAR","Minab","Minab",6,2,4,7,"Esquive, Minus, Solitaire, Poids Plume. Doit être pris avec Pét'Brik",145000,1]
[null,"Esquive en Force",null,"Bras Supplémentaires",null,"--Mutation--",null,null,null,null,"STAR","Morg 'n' Thorg","Morg 'n' Thorg",6,6,3,10,"Blocage, Châtaigne, Crâne Epais, Lancer un Coéquipier, Solitaire",430000,1]
[null,"Garde",null,"Cornes",null,"Bras Supplémentaires",null,null,null,null,"STAR","Nobbla La Teigne","Nobbla La Teigne",6,2,3,7,"Arme Secrète, Blocage, Esquive, Manchot, Minus, Solitaire, Tronçonneuse",100000,1]
[null,"Juggernaut",null,"Deux Têtes",null,"Cornes",null,null,null,null,"STAR","Pét'Brik","Pét'Brik",5,5,2,9,"Cerveau Lent, Châtaigne, Costaud, Crâne Epais, Lancer un Coéquipier, Nerfs d'Acier, Solitaire. Doit être pris avec Minab",145000,1]
[null,"Projection",null,"Main Démesurée",null,"Deux Têtes",null,null,null,null,"STAR","Prince Moranion","Prince Moranion",7,4,4,8,"Blocage, Intrépidité, Lutte, Solitaire, Tacle",230000,1]
[null,"Stabilité",null,"Pince/Griffes",null,"Main Démesurée",null,null,null,null,"STAR","Puggy Haleinedebacon","Puggy Haleinedebacon",5,3,3,6,"Blocage, Esquive, Minus, Nerfs d'Acier, Solitaire, Poids Plume",140000,1]
[null,null,null,"Présence  Perturbante",null,"Pince/Griffes",null,null,null,null,"STAR","Quetzal le Bondissant","Quetzal le Bondissant",8,2,4,7,"Solitaire, Réception, Plongeon, Parade, Anticipation, Saut, Nerfs d'Acier, Très Longues Jambes",250000,1]
[null,"--Mutation--",null,"Queue Préhensile",null,"Présence  Perturbante",null,null,null,null,"STAR","Racine Dutronc","Racine Dutronc",2,7,1,10,"Blocage, Châtaigne, Costaud, Crâne Epais, Lancer un Coéquipier, Solitaire, Stabilité",250000,1]
[null,"Bras Supplémentaires",null,"Répulsion",null,"Queue Préhensile",null,null,null,null,"STAR","Ramtut III","Ramtut III",5,6,1,9,"Châtaigne, Esquive en Force, Lutte, Solitaire, Régénération",350000,1]
[null,"Cornes",null,"Tentacules",null,"Répulsion",null,null,null,null,"STAR","Rashnak Lamedansledos ","Rashnak Lamedansledos ",7,3,3,7,"Esquive, Glissade Contrôlée, Solitaire, Poignard, Sournois",200000,1]
[null,"Deux Têtes",null,"Très Longues jambes",null,"Tentacules",null,null,null,null,"STAR","Roxanna Onglenoir","Roxanna Onglenoir",8,3,5,7,"Solitaire, Esquive, Frénésie, Bond, Juggernaut, Saut",250000,1]
[null,"Main Démesurée",null,null,null,"Très Longues jambes",null,null,null,null,"STAR","Scrappa Malocrâne","Scrappa Malocrâne",7,2,3,7,"Arme Secrète, Equilibre, Esquive, Joueur Vicieux, Minus, Solitaire, Poids Plume, Saut, Sprint, Très Longue Jambes",50000,1]
[null,"Pince/Griffes",null,null,null,null,null,null,null,null,"STAR","Setekh ","Setekh ",6,4,2,8,"Arracher le Ballon, Blocage, Esquive en Force, Juggernaut, Solitaire, Régénération",220000,1]
[null,"Présence  Perturbante",null,"FMP",null,null,null,null,null,null,"STAR","Sinnedbad","Sinnedbad",6,3,2,7,"Solitaire, Blocage, Bond, Blocage de Passe, Régénération, Arme Secrète, Glissage Contrôlée, Poignards",80000,1]
[null,"Queue Préhensile",null,"--Force--",null,null,null,null,null,null,"STAR","Skitter Pic-Pic","Skitter Pic-Pic",9,2,4,7,"Esquive, Solitaire, Poignard, Poursuite, Queue Préhensile",160000,1]
[null,"Répulsion",null,"Blocage Multiple",null,null,null,null,null,null,"STAR","Slibli","Slibli",7,4,1,9,"Blocage, Garde, Solitaire, Projection, Stabilité",250000,1]
[null,"Tentacules",null,"Châtaigne",null,null,null,null,null,null,"STAR","Soaren Hautetour","Soaren Hautetour",6,3,4,8,"Solitaire, Parade, Anticipation, Passe, Lancer Précis, Dextérité, Costaud",180000,1]
[null,"Très Longues jambes",null,"Costaud",null,null,null,null,null,null,"STAR","Tronçonneuse Flint","Tronçonneuse Flint",5,3,2,8,"Arme Secrète, Blocage, Crâne Epais, Manchot, Solitaire, Tronçonneuse",100000,1]
[null,null,null,"Crâne Epais",null,null,null,null,null,null,"STAR","Ugroth Tranchegrots ","Ugroth Tranchegrots ",5,3,3,9,"Arme Secrète, Manchot, Solitaire, Tronçonneuse",70000,1]
[null,"--Passe--",null,"Ecrasement",null,null,null,null,null,null,"STAR","Varag Mach'goule","Varag Mach'goule",6,4,3,9,"Blocage, Bond, Châtaigne, Crâne Epais, Solitaire",260000,1]
[null,"Chef",null,"Esquive en Force",null,null,null,null,null,null,"STAR","Wilhelm Chaney ","Wilhelm Chaney ",8,4,3,8,"Frénésie, Griffes, Lutte, Solitaire, Réception, Régénération",240000,1]
[null,"La Main de Dieu",null,"Garde",null,null,null,null,null,null,"STAR","Willow Teinrose","Willow Teinrose",5,4,3,8,"Solitaire, Intrépidité, Glissade Contrôlée, Crâne Epais",150000,1]
[null,"Lancer Précis",null,"Juggernaut",null,null,null,null,null,null,"STAR","Zara la Tueuse","Zara la Tueuse",6,4,3,8,"Blocage, Bond, Esquive, Intrépidité, Solitaire, Poignard, Pieux",270000,1]
[null,"Nerfs d'Acier",null,"Projection",null,null,null,null,null,null,"STAR","Zug la Bête","Zug la Bête",4,5,2,9,"Blocage, Châtaigne, Solitaire",230000,1]
[null,"Passe",null,"Stabilité",null,null,null,null,null,null,"STAR","Zzarg le Borgne","Zzarg le Borgne",5,3,2,9,"Arme Secrète, Costaud, Crâne Epais, Dextérité, La Main de Dieu, Passe, Solitaire, Tacle",60000,1]
[null,"Passe rapide"]
[null,"Précision",null,"--Mutation--"]
[null,null,null,"Bras Supplémentaires"]
[null,null,null,"Cornes"]
[null,"AFP",null,"Deux Têtes"]
[null,"--Agilité--",null,"Main Démesurée"]
[null,"Bond",null,"Pince/Griffes"]
[null,"Equilibre",null,"Présence  Perturbante"]
[null,"Esquive",null,"Queue Préhensile"]
[null,"Glissade Contrôlée",null,"Répulsion"]
[null,"Plongeon",null,"Tentacules"]
[null,"Réception",null,"Très Longues jambes"]
[null,"Saut"]
[null,"Sournois",null,"--Passe--"]
[null,"Sprint",null,"Chef"]
[null,"Tacle Plongeant",null,"La Main de Dieu"]
[null,null,null,"Lancer Précis"]
[null,"--Force--",null,"Nerfs d'Acier"]
[null,"Blocage Multiple",null,"Passe"]
[null,"Châtaigne",null,"Passe rapide"]
[null,"Costaud",null,"Précision"]
[null,"Crâne Epais"]
[null,"Ecrasement"]
[null,"Esquive en Force",null,"FP"]
[null,"Garde",null,"--Force--"]
[null,"Juggernaut",null,"Blocage Multiple"]
[null,"Projection",null,"Châtaigne"]
[null,"Stabilité",null,"Costaud"]
[null,null,null,"Crâne Epais"]
[null,"--Passe--",null,"Ecrasement"]
[null,"Chef",null,"Esquive en Force"]
[null,"La Main de Dieu",null,"Garde"]
[null,"Lancer Précis",null,"Juggernaut"]
[null,"Nerfs d'Acier",null,"Projection"]
[null,"Passe",null,"Stabilité"]
[null,"Passe rapide"]
[null,"Précision",null,"--Passe--"]
[null,null,null,"Chef"]
[null,null,null,"La Main de Dieu"]
[null,"AG",null,"Lancer Précis"]
[null,"--Agilité--",null,"Nerfs d'Acier"]
[null,"Bond",null,"Passe"]
[null,"Equilibre",null,"Passe rapide"]
[null,"Esquive",null,"Précision"]
[null,"Glissade Contrôlée"]
[null,"Plongeon"]
[null,"Réception",null,"GMP"]
[null,"Saut",null,"--Général--"]
[null,"Sournois",null,"Anticipation"]
[null,"Sprint",null,"Arracher le Ballon"]
[null,"Tacle Plongeant",null,"Blocage"]
[null,null,null,"Blocage de Passe"]
[null,"--Général--",null,"Dextérité"]
[null,"Anticipation",null,"Frappe Précise"]
[null,"Arracher le Ballon",null,"Frénésie"]
[null,"Blocage",null,"Intrépidité"]
[null,"Blocage de Passe",null,"Joueur Vicieux"]
[null,"Dextérité",null,"Lutte"]
[null,"Frappe Précise",null,"Parade"]
[null,"Frénésie",null,"Poursuite"]
[null,"Intrépidité",null,"Pro"]
[null,"Joueur Vicieux",null,"Tacle"]
[null,"Lutte"]
[null,"Parade",null,"--Mutation--"]
[null,"Poursuite",null,"Bras Supplémentaires"]
[null,"Pro",null,"Cornes"]
[null,"Tacle",null,"Deux Têtes"]
[null,null,null,"Main Démesurée"]
[null,null,null,"Pince/Griffes"]
[null,"AGMP",null,"Présence  Perturbante"]
[null,"--Agilité--",null,"Queue Préhensile"]
[null,"Bond",null,"Répulsion"]
[null,"Equilibre",null,"Tentacules"]
[null,"Esquive",null,"Très Longues jambes"]
[null,"Glissade Contrôlée"]
[null,"Plongeon",null,"--Passe--"]
[null,"Réception",null,"Chef"]
[null,"Saut",null,"La Main de Dieu"]
[null,"Sournois",null,"Lancer Précis"]
[null,"Sprint",null,"Nerfs d'Acier"]
[null,"Tacle Plongeant",null,"Passe"]
[null,null,null,"Passe rapide"]
[null,"--Général--",null,"Précision"]
[null,"Anticipation"]
[null,"Arracher le Ballon"]
[null,"Blocage",null,"AGM"]
[null,"Blocage de Passe",null,"--Agilité--"]
[null,"Dextérité",null,"Bond"]
[null,"Frappe Précise",null,"Equilibre"]
[null,"Frénésie",null,"Esquive"]
[null,"Intrépidité",null,"Glissade Contrôlée"]
[null,"Joueur Vicieux",null,"Plongeon"]
[null,"Lutte",null,"Réception"]
[null,"Parade",null,"Saut"]
[null,"Poursuite",null,"Sournois"]
[null,"Pro",null,"Sprint"]
[null,"Tacle",null,"Tacle Plongeant"]
[]
[null,"--Mutation--",null,"--Général--"]
[null,"Bras Supplémentaires",null,"Anticipation"]
[null,"Cornes",null,"Arracher le Ballon"]
[null,"Deux Têtes",null,"Blocage"]
[null,"Main Démesurée",null,"Blocage de Passe"]
[null,"Pince/Griffes",null,"Dextérité"]
[null,"Présence  Perturbante",null,"Frappe Précise"]
[null,"Queue Préhensile",null,"Frénésie"]
[null,"Répulsion",null,"Intrépidité"]
[null,"Tentacules",null,"Joueur Vicieux"]
[null,"Très Longues jambes",null,"Lutte"]
[null,null,null,"Parade"]
[null,"--Passe--",null,"Poursuite"]
[null,"Chef",null,"Pro"]
[null,"La Main de Dieu",null,"Tacle"]
[null,"Lancer Précis"]
[null,"Nerfs d'Acier",null,"--Mutation--"]
[null,"Passe",null,"Bras Supplémentaires"]
[null,"Passe rapide",null,"Cornes"]
[null,"Précision",null,"Deux Têtes"]
[null,null,null,"Main Démesurée"]
[null,null,null,"Pince/Griffes"]
[null,"AGP",null,"Présence  Perturbante"]
[null,"--Agilité--",null,"Queue Préhensile"]
[null,"Bond",null,"Répulsion"]
[null,"Equilibre",null,"Tentacules"]
[null,"Esquive",null,"Très Longues jambes"]
[null,"Glissade Contrôlée"]
[null,"Plongeon"]
[null,"Réception"]
[null,"Saut"]
[null,"Sournois"]
[null,"Sprint"]
[null,"Tacle Plongeant"]
[]
[null,"--Général--"]
[null,"Anticipation"]
[null,"Arracher le Ballon"]
[null,"Blocage"]
[null,"Blocage de Passe"]
[null,"Dextérité"]
[null,"Frappe Précise"]
[null,"Frénésie"]
[null,"Intrépidité"]
[null,"Joueur Vicieux"]
[null,"Lutte"]
[null,"Parade"]
[null,"Poursuite"]
[null,"Pro"]
[null,"Tacle"]
[]
[null,"--Passe--"]
[null,"Chef"]
[null,"La Main de Dieu"]
[null,"Lancer Précis"]
[null,"Nerfs d'Acier"]
[null,"Passe"]
[null,"Passe rapide"]
[null,"Précision"]
[]
[]
[null,"AMP"]
[null,"--Agilité--"]
[null,"Bond"]
[null,"Equilibre"]
[null,"Esquive"]
[null,"Glissade Contrôlée"]
[null,"Plongeon"]
[null,"Réception"]
[null,"Saut"]
[null,"Sournois"]
[null,"Sprint"]
[null,"Tacle Plongeant"]
[]
[null,"--Mutation--"]
[null,"Bras Supplémentaires"]
[null,"Cornes"]
[null,"Deux Têtes"]
[null,"Main Démesurée"]
[null,"Pince/Griffes"]
[null,"Présence  Perturbante"]
[null,"Queue Préhensile"]
[null,"Répulsion"]
[null,"Tentacules"]
[null,"Très Longues jambes"]
[]
[null,"--Passe--"]
[null,"Chef"]
[null,"La Main de Dieu"]
[null,"Lancer Précis"]
[null,"Nerfs d'Acier"]
[null,"Passe"]
[null,"Passe rapide"]
[null,"Précision"]
[]
[]
[null,"AP"]
[null,"--Agilité--"]
[null,"Bond"]
[null,"Equilibre"]
[null,"Esquive"]
[null,"Glissade Contrôlée"]
[null,"Plongeon"]
[null,"Réception"]
[null,"Saut"]
[null,"Sournois"]
[null,"Sprint"]
[null,"Tacle Plongeant"]
[]
[null,"--Passe--"]
[null,"Chef"]
[null,"La Main de Dieu"]
[null,"Lancer Précis"]
[null,"Nerfs d'Acier"]
[null,"Passe"]
[null,"Passe rapide"]
[null,"Précision"]

{"sheet":"Lisez-moi","index":1,"n_rows":55,"n_cols":11,"rows_kept":55,"cut":false,"hidden":true,"merged":[[1,1,1,17]]}
[]
[null,"EDITEUR D'EQUIPES DE BLOODBOWL"]
[]
[null,"Cet éditeur va vous permettre de construireet gérer votre équipe en fonction des règles du LRB 5, et par la suite de l'imprimer."]
[]
[null,"Tout d'abord, vous verrez que certaines cases sont grisées. Ne rentrez aucune valeur dans ces cases, elles contiennent pour la plupart des formules."]
[null,"Les cases blanches, elles, vous sont destinées. Vous y rentrerez les noms des joueurs, de l'équipe, votre nombre de relances…."]
[]
[null,"I. Création de votre équipe"]
[]
[null,null,"1. Choisissez la race de votre équipe au moyen du menu déroulant."]
[]
[null,null,"2. Choisissez maintenant les joueurs de votre équipe, à l'aide des menus déroulants des cases Position."]
[null,null,null,"Les caractéristiques, compétences et valeur de chaque joueur sont automatiquement ajoutés."]
[]
[null,null,"3. Remplissez les cases blanches manquantes (nom de votre équipe, nom des joueurs, nombre de relances….)."]
[null,null,null,"Important: si vous choisissez un apothicaire, mettez 1 dans la case correspondante."]
[null,null,null,null,"Vous ne pouvez mettre qu'un seul apothicaire sur cette feuile, les autres ne seront pas comptabilisés."]
[]
[null,"II. Progression de votre équipe"]
[]
[null,null,"Lorsque vos joueurs gagnent des points d'expériences, renseignez les cases correspondantes. Le calcul du total des points d'expérience est automatique."]
[]
[null,null,"Tout à droite de votre feuille d'équipe se trouvent 2 colonnes, CompD et CompP."]
[null,null,null,"CompD est le nombre de compétences auxquelles à droit votre joueur (en fonction de ses points d'expérience)."]
[null,null,null,"CompP est le nombre de compétences que votre joueur a déjà pris."]
[null,null,null,"La différence est donc le nombre de compétences que peut encore prendre votre joueur."]
[]
[null,null,"1. Si votre joueur gagne une compétence, cliquez sur le bouton \"Comp\" de la ligne correspondante à votre joueur."]
[null,null,null,"Choisissez la compétence (simple ou double) ou la caractéristique. Celle-ci se rajoutera automatiquement à votre joueur."]
[null,null,null,"La nouvelle valeur de votre joueur sera alors automatiquement recalculée et ajoutée à votre Team Value."]
[]
[null,null,"2. Si votre joueur à subi une blessure, cliquez sur le bouton \"Bless\" de la ligne correpondante à votre joueur."]
[null,null,null,"Choisissez une blessure, celle-ci se rajoutera à votre joueur."]
[null,null,null,"Match d'arrêt: ceci rajoutera un \"m\" dans la colonne M de votre feuille d'équipe, permettant de ne pas prendre en compte ce joueur pour le TV."]
[null,null,null,null,"Si vous souhaitez enlever le match d'arrêt, il suffit de supprimer le \"m\"."]
[null,null,null,"Persistante: ceci rajoutera une persitante à la colonne P de votre feuille d'équipe, et un match d'arrêt."]
[null,null,null,"Caractéristiques: enlève un point de caractéristique et un match d'arrêt. Les caractéristiques ne peuvent jamais tombre à 0."]
[null,null,null,"Mort: arf votre joueur est mort. Qu'à cela ne tienne. Choisissez votre blessure et la ligne occupée par votre joueur se vide alors, laissant la place à une recrue."]
[null,null,null,null,"Néanmoins, tout n'est pas perdu, car vous aurez un souvenir de ce joueur en allant voir la feuille Hall of Fame."]
[null,null,null,"Retraité: il est temps de se séparer de ce nain qui n'a plus que 2 en Fo. Choisissez Retraité, et votre joueur laissera sa place à un nouveau."]
[null,null,null,null,"Comme pour les morts, une trace des joueurs retraités se trouve dans la feuille \"Hall of Fame\"."]
[]
[null,"III. Précautions d'usages"]
[]
[null,null,"Gardez toujours un exemplaire original de ce fichier."]
[]
[null,null,"Si vous avez fait une grosse bourde sur un joueur, il n'est pas possible de revenir en arrière (exemple, vous lui avez mis blocage, alors qu'il pouvait prendre +1Fo :))."]
[null,null,"Dans ce cas-là, mettez votre joueur à la retraite et recréez-le. Vous ferez plus attention la prochaine fois :)."]
[]
[null,null,"Si vous constatez des anomalies de fonctionnement, ou des erreurs (noms des joueurs, valeur ou compétences….), n'hésitez pas à m'envoyer un petit mail:"]
[null,null,null,"xavchat@club-internet.fr"]
[]
[]
[null,null,null,null,null,null,null,null,null,null,"Oneshoos"]

{"sheet":"Roster","index":2,"n_rows":50,"n_cols":80,"rows_kept":50,"cut":false,"hidden":false,"merged":[[8,13,8,14],[9,13,9,14],[10,13,10,14],[49,8,49,9],[48,8,48,9],[12,13,12,14],[13,13,13,14],[18,13,18,14],[14,13,14,14],[15,13,15,14],[16,13,16,14],[17,13,17,14],[20,8,20,9],[25,5,25,14],[18,5,19,7],[19,9,19,14],[25,15,25,18],[24,10,24,13],[10,8,10,9],[11,8,11,9],[12,8,12,9],[13,8,13,9],[22,8,22,9],[23,10,23,13],[23,16,23,17],[24,16,24,17],[22,16,22,17],[22,10,22,13],[1,13,1,14],[2,13,2,14],[3,13,3,14],[4,13,4,14],[5,13,5,14],[1,8,1,9],[2,8,2,9],[3,8,3,9],[4,8,4,9],[5,8,5,9],[6,8,6,9],[19,15,19,18],[20,10,20,13],[21,10,21,13],[20,16,20,17],[14,8,14,9],[15,8,15,9],[16,8,16,9],[17,8,17,9],[21,16,21,17],[11,13,11,14],[7,8,7,9],[8,8,8,9],[9,8,9,9],[6,13,6,14],[7,13,7,14],[18,1,25,4],[20,5,20,7],[21,5,21,7],[22,5,22,7],[23,5,23,7],[24,5,24,7]]}
[]
[null,"#","NOM DES JOUEURS","POSITION","M","F","AG","AR","COMPÉTENCES",null,"M","P","REU","TD",null,"INT","SOR","JPV","PE","VALEUR","VA","Comp D","Comp P",null,null,null,null,null,null,null,"S","D","M","F","AG","AR",null,null,"Amazones",null,null,null,"Nombre","Qté",null,null,"M","F","AG","AR","Valeur","V tot",null,"Valeur selon blessure",null,"Simple","Double",null,"Liste Simple",null,"Liste Double",null,"Comp",null,"Car",null,"Blessure",null,"Ligne",null,"NbCarOrig",null,"NbCar",null,"Compet",null,"M-","F-","Ag-","Ar-"]
[null,1,null,null,{"$f":"IF($D3=\"\",\"\",(VLOOKUP($D3,Position,2,FALSE)))","v":""},{"$f":"IF($D3=\"\",\"\",(VLOOKUP($D3,Position,3,FALSE)))","v":""},{"$f":"IF($D3=\"\",\"\",(VLOOKUP($D3,Position,4,FALSE)))","v":""},{"$f":"IF($D3=\"\",\"\",(VLOOKUP($D3,Position,5,FALSE)))","v":""},{"$f":"IF($D3=0,\"\",(IF(VLOOKUP($D3,Nombre,4,FALSE)=1,\"Vous avez trop de joueurs de ce type\",VLOOKUP($D3,Position,6,FALSE))))","v":""},null,null,null,null,null,null,null,null,null,{"$f":"M3+(N3*3)+(P3*2)+(Q3*2)+(R3*5)","v":0},{"$f":"IF($D3=0,\"\",(VLOOKUP($D3,Position,7,FALSE))+U3)","v":""},{"$f":"(AE3*Simple)+(AF3*Double)+IF(AG3>0,(AG3*Mouv),0)+IF(AH3>0,(AH3*For),0)+IF(AI3>0,(AI3*Agi),0)+IF(AJ3>0,(AJ3*Arm),0)","v":0},{"$f":"IF(S3<6,\"0\",IF(S3<16,\"1\",IF(S3<31,\"2\",IF(S3<51,\"3\",IF(S3<76,\"4\",IF(S3<176,\"5\",\"6\"))))))","v":"0"},{"$f":"AK3","v":0},null,null,null,null,null,null,null,null,null,null,null,null,null,{"$f":"SUM(AE3:AJ3)","v":0},null,"Chaos",null,{"$f":"HLOOKUP($I$22,JoueursH,2,FALSE)","v":"Amazone 1"},{"$f":"IF(AO3=0,\"\",VLOOKUP(AO3,Joueurs,2,FALSE))","v":"Trois-quart Ama"},{"$f":"COUNTIF($D$3:$D$18,AP3)","v":0},{"$f":"IF(AP3=\"\",\"\",(VLOOKUP(AP3,Position,8, FALSE)))","v":16},{"$f":"IF(AQ3>AR3,1,0)","v":0},null,{"$f":"IF($D3=\"\",\"\",VLOOKUP($D3,Position,2,FALSE))","v":""},{"$f":"IF($D3=\"\",\"\",VLOOKUP($D3,Position,3,FALSE))","v":""},{"$f":"IF($D3=\"\",\"\",VLOOKUP($D3,Position,4,FALSE))","v":""},{"$f":"IF($D3=\"\",\"\",VLOOKUP($D3,Position,5,FALSE))","v":""},{"$f":"IF($D3=\"\",\"\",IF(K3=\"\",VLOOKUP($D3,Position,7,FALSE),0))","v":""},{"$f":"AY3+U3","v":{"$error":"#VALUE!"}},null,{"$f":"IF(K3=\"\",T3,0)","v":""},null,{"$f":"IF($D3=\"\",\"\",VLOOKUP($D3,Position,9,FALSE))","v":""},{"$f":"IF($D3=\"\",\"\",VLOOKUP($D3,Position,10,FALSE))","v":""},null,null,null,null,null,null,null,null,null,null,null,13,null,null,null,null,null,"Esquive"]
[null,2,null,null,{"$f":"IF($D4=\"\",\"\",(VLOOKUP($D4,Position,2,FALSE)))","v":""},{"$f":"IF($D4=\"\",\"\",(VLOOKUP($D4,Position,3,FALSE)))","v":""},{"$f":"IF($D4=\"\",\"\",(VLOOKUP($D4,Position,4,FALSE)))","v":""},{"$f":"IF($D4=\"\",\"\",(VLOOKUP($D4,Position,5,FALSE)))","v":""},{"$f":"IF($D4=0,\"\",(IF(VLOOKUP($D4,Nombre,4,FALSE)=1,\"Vous avez trop de joueurs de ce type\",VLOOKUP($D4,Position,6,FALSE))))","v":""},null,null,null,null,null,null,null,null,null,{"$f":"M4+(N4*3)+(P4*2)+(Q4*2)+(R4*5)","v":0},"",0,{"$f":"IF(S4<6,\"0\",IF(S4<16,\"1\",IF(S4<31,\"2\",IF(S4<51,\"3\",IF(S4<76,\"4\",IF(S4<176,\"5\",\"6\"))))))","v":"0"},{"$f":"AK4","v":0},null,null,null,null,null,null,null,null,null,null,null,null,null,{"$f":"SUM(AE4:AJ4)","v":0},null,"Elfes Noirs",null,{"$f":"HLOOKUP($I$22,JoueursH,3,FALSE)","v":"Amazone 2"},"Lanceuse Ama",{"$f":"COUNTIF($D$3:$D$18,AP4)","v":0},2,{"$f":"IF(AQ4>AR4,1,0)","v":0},null,"","","","","",{"$f":"AY4+U4","v":{"$error":"#VALUE!"}},null,{"$f":"IF(K4=\"\",T4,0)","v":""},null,"","",null,"--Force--",null,"--Agilité--",null,null,null,null,null,null,null,null,null,null,null,null,null,"Simple"]
[null,3,null,null,{"$f":"IF($D5=\"\",\"\",(VLOOKUP($D5,Position,2,FALSE)))","v":""},{"$f":"IF($D5=\"\",\"\",(VLOOKUP($D5,Position,3,FALSE)))","v":""},{"$f":"IF($D5=\"\",\"\",(VLOOKUP($D5,Position,4,FALSE)))","v":""},{"$f":"IF($D5=\"\",\"\",(VLOOKUP($D5,Position,5,FALSE)))","v":""},"",null,null,null,null,null,null,null,null,null,0,"",0,"0",0,null,null,null,null,null,null,null,null,null,null,null,null,null,0,null,"Elfes Pro",null,{"$f":"HLOOKUP($I$22,JoueursH,4,FALSE)","v":"Amazone 3"},"Receveuse Ama",0,2,0,null,"","","","","",{"$error":"#VALUE!"},null,"",null,"","",null,"Blocage Multiple",null,"Bond",null,null,null,null,null,null,null,"Verif",null,null,null,null,null,{"$f":"IF(Compet=\"\",\"0\",IF(ISERROR(VLOOKUP(Compet,ListeSimple,1,FALSE)),\"0\",IF(VLOOKUP(Compet,ListeSimple,1,FALSE)=Compet,\"1\",\"0\")))","v":"0"}]
[null,4,null,null,{"$f":"IF($D6=\"\",\"\",(VLOOKUP($D6,Position,2,FALSE)))","v":""},{"$f":"IF($D6=\"\",\"\",(VLOOKUP($D6,Position,3,FALSE)))","v":""},{"$f":"IF($D6=\"\",\"\",(VLOOKUP($D6,Position,4,FALSE)))","v":""},{"$f":"IF($D6=\"\",\"\",(VLOOKUP($D6,Position,5,FALSE)))","v":""},"",null,null,null,null,null,null,null,null,null,{"$f":"M6+(N6*3)+(P6*2)+(Q6*2)+(R6*5)","v":0},"",0,"0",0,null,null,null,null,null,null,null,null,null,null,null,null,null,0,null,"Elfes Sylvains",null,{"$f":"HLOOKUP($I$22,JoueursH,5,FALSE)","v":"Amazone 4"},"Coureuse Ama",0,4,0,null,"","","","","",{"$error":"#VALUE!"},null,"",null,"","",null,"Châtaigne",null,"Equilibre",null,null,null,null,null,null,null,0,null,null,null,null,null,"Double"]
[null,5,null,null,"",{"$f":"IF($D7=\"\",\"\",(VLOOKUP($D7,Position,3,FALSE)))","v":""},{"$f":"IF($D7=\"\",\"\",(VLOOKUP($D7,Position,4,FALSE)))","v":""},"","",null,null,null,null,null,null,null,null,null,0,"",0,"0",0,null,null,null,null,null,null,null,null,null,null,null,null,null,0,null,"Gobelins",null,{"$f":"HLOOKUP($I$22,JoueursH,6,FALSE)","v":"Amazone 5"},"Journalière Ama",0,11,0,null,"","","","","",{"$error":"#VALUE!"},null,"",null,"","",null,"Costaud",null,"Glissade Contrôlée",null,null,null,null,null,null,null,null,null,null,null,null,null,{"$f":"IF(Compet=\"\",\"0\",IF(ISERROR(VLOOKUP(Compet,ListeDouble,1,FALSE)),\"0\",IF(VLOOKUP(Compet,ListeDouble,1,FALSE)=Compet,\"1\",\"0\")))","v":"0"}]
[null,6,null,null,"","","","","",null,null,null,null,null,null,null,null,null,0,"",0,"0",0,null,null,null,null,null,null,null,null,null,null,null,null,null,0,null,"Halflings",null,{"$f":"HLOOKUP($I$22,JoueursH,7,FALSE)","v":"Glart Lavollée Jr"},"Glart Lavollée Jr",0,1,0,null,"","","","","",{"$error":"#VALUE!"},null,"",null,"","",null,"Crâne Epais",null,"Plongeon",null,null,null,null,null,null,null,"VerifCarac"]
[null,7,null,null,"","","","","",null,null,null,null,null,null,null,null,null,0,"",0,"0",0,null,null,null,null,null,null,null,null,null,null,null,null,null,0,null,"Hauts Elfes",null,{"$f":"HLOOKUP($I$22,JoueursH,8,FALSE)","v":"Willow Teinrose"},"Willow Teinrose",0,1,0,null,"","","","","",{"$error":"#VALUE!"},null,"",null,"","",null,"Ecrasement",null,"Réception",null,null,null,null,null,null,null,0,null,null,null,null,null,{"$f":"IF(ISERR(VLOOKUP(Compet,ListeDouble,1,FALSE)),\"0\",\"1\")","v":"1"}]
[null,8,null,null,"","","","","",null,null,null,null,null,null,null,null,null,{"$f":"M10+(N10*3)+(P10*2)+(Q10*2)+(R10*5)","v":0},"",0,"0",{"$f":"AK10","v":0},null,null,null,null,null,null,null,null,null,null,null,null,null,0,null,"Hommes-Lezards",null,{"$f":"HLOOKUP($I$22,JoueursH,9,FALSE)","v":"Roxanna Onglenoir"},"Roxanna Onglenoir",0,{"$f":"IF(AP10=\"\",\"\",(VLOOKUP(AP10,Position,8, FALSE)))","v":1},{"$f":"IF(AQ10>AR10,1,0)","v":0},null,"","","","","",{"$error":"#VALUE!"},null,"",null,"","",null,"Esquive en Force",null,"Saut"]
[null,9,null,null,"","","","","",null,null,null,null,null,null,null,null,null,0,"",0,"0",0,null,null,null,null,null,null,null,null,null,null,null,null,null,0,null,"Humains",null,{"$f":"HLOOKUP($I$22,JoueursH,10,FALSE)","v":"Bertha Gropoing"},"Bertha GroPoing",0,1,0,null,"","","","","",{"$error":"#VALUE!"},null,"",null,"","",null,"Garde",null,"Sournois"]
[null,10,null,null,{"$f":"IF($D12=\"\",\"\",(VLOOKUP($D12,Position,2,FALSE)))","v":""},{"$f":"IF($D12=\"\",\"\",(VLOOKUP($D12,Position,3,FALSE)))","v":""},{"$f":"IF($D12=\"\",\"\",(VLOOKUP($D12,Position,4,FALSE)))","v":""},"","",null,null,null,null,null,null,null,null,null,0,"",0,"0",0,null,null,null,null,null,null,null,null,null,null,null,null,null,0,null,"Khemris",null,{"$f":"HLOOKUP($I$22,JoueursH,11,FALSE)","v":"Zara la Tueuse"},{"$f":"IF(AO12=0,\"\",VLOOKUP(AO12,Joueurs,2,FALSE))","v":"Zara la Tueuse"},0,1,0,null,"","","","","",{"$error":"#VALUE!"},null,"",null,"","",null,"Juggernaut",null,"Sprint"]
[null,11,null,null,"","","",{"$f":"IF($D13=\"\",\"\",(VLOOKUP($D13,Position,5,FALSE)))","v":""},"",null,null,null,null,null,null,null,null,null,0,"",0,"0",0,null,null,null,null,null,null,null,null,null,null,null,null,null,0,null,"Morts-vivants",null,{"$f":"HLOOKUP($I$22,JoueursH,12,FALSE)","v":"Morg 'n' Thorg"},"Morg 'n' Thorg",0,1,0,null,"","","","","",{"$error":"#VALUE!"},null,"",null,"","",null,"Projection",null,"Tacle Plongeant"]
[null,12,null,null,"","","","","",null,null,null,null,null,null,null,null,null,0,"",0,"0",0,null,null,null,null,null,null,null,null,null,null,null,null,null,0,null,"Nains",null,{"$f":"HLOOKUP($I$22,JoueursH,13,FALSE)","v":0},"",16,"",0,null,"","","","","",{"$error":"#VALUE!"},null,"",null,"","",null,"Stabilité"]
[null,13,null,null,"","","","","",null,null,null,null,null,null,null,null,null,0,"",0,"0",0,null,null,null,null,null,null,null,null,null,null,null,null,null,0,null,"Nains du Chaos",null,{"$f":"HLOOKUP($I$22,JoueursH,14,FALSE)","v":0},{"$f":"IF(AO15=0,\"\",VLOOKUP(AO15,Joueurs,2,FALSE))","v":""},16,"",0,null,"","","","","",{"$error":"#VALUE!"},null,"",null,"","",null,null,null,"--Passe--"]
[null,14,null,null,"","","","","",null,null,null,null,null,null,null,null,null,0,"",0,"0",0,null,null,null,null,null,null,null,null,null,null,null,null,null,0,null,"Nécromantiques",null,{"$f":"HLOOKUP($I$22,JoueursH,15,FALSE)","v":0},"",16,"",0,null,"","","","","",{"$error":"#VALUE!"},null,"",null,"","",null,"--Général--",null,"Chef"]
[null,15,null,null,"","","","","",null,null,null,null,null,null,null,null,null,0,"",0,"0",0,null,null,null,null,null,null,null,null,null,null,null,null,null,0,null,"Nordiques",null,{"$f":"HLOOKUP($I$22,JoueursH,16,FALSE)","v":0},"",16,"",0,null,"","","","","",{"$error":"#VALUE!"},null,"",null,"","",null,"Anticipation",null,"La Main de Dieu"]
[null,16,null,null,"","","","","",null,null,null,null,null,null,null,null,null,0,"",0,"0",0,null,null,null,null,null,null,null,null,null,null,null,null,null,0,null,"Nurgle",null,null,null,null,null,null,null,"","","","","",{"$error":"#VALUE!"},null,"",null,"","",null,"Arracher le Ballon",null,"Lancer Précis"]
[null,"Logo",null,null,null,null,null,null,"Nombre de Joueurs","Total PE",null,{"$f":"SUM(L3:L18)","v":0},{"$f":"SUM(M3:M18)","v":0},{"$f":"SUM(N3:O18)","v":0},null,0,0,0,0,null,null,null,null,null,null,null,null,null,null,null,null,null,null,null,null,null,null,null,"Ogres",null,null,null,null,null,null,null,null,null,null,null,null,null,null,null,null,null,null,null,"Blocage de Passe",null,"Nerfs d'Acier"]
[null,null,null,null,null,null,null,null,{"$f":"(16-COUNTBLANK(D3:D18))-(16-COUNTBLANK(K3:K18))","v":0},null,null,null,null,null,null,"Valeur des joueurs",null,null,null,{"$f":"SUM(BB3:BB18)","v":0},null,null,null,null,null,null,null,null,null,null,null,null,null,null,null,null,null,null,"Orques",null,null,null,null,null,null,null,null,null,null,null,null,null,null,null,null,null,null,null,"Dextérité",null,"Passe"]
[null,null,null,null,null,"EQUIPE",null,null,null,null,"RELANCE",null,null,null,null,"x",{"$f":"IF(I22<>\"\",VLOOKUP(I22,Races,2,FALSE),0)","v":50000},null,"po",{"$f":"O21*Q21","v":0},null,null,null,null,null,null,null,null,null,null,null,null,null,null,null,null,null,null,"Skavens",null,null,null,null,null,null,null,null,null,null,null,null,null,null,null,null,null,null,null,"Frappe Précise",null,"Passe rapide"]
[null,null,null,null,null,"RACE",null,null,"Amazones",null,"POPULARITE",null,null,null,null,"x",10000,null,"po",{"$f":"O22*Q22","v":0},null,null,null,null,null,null,null,null,null,null,null,null,null,null,null,null,null,null,"Vampires",null,null,null,null,null,null,null,null,null,null,null,null,null,null,null,null,null,null,null,"Frénésie",null,"Précision"]
[null,null,null,null,null,"COACH",null,null,null,null,"ASSISTANTS",null,null,null,null,"x",10000,null,"po",{"$f":"O23*Q23","v":0},null,null,null,null,null,null,null,null,null,null,null,null,null,null,null,null,null,null,"Bas Fonds",null,null,null,null,null,null,null,null,null,null,null,null,null,null,null,null,null,null,null,"Intrépidité"]
[null,null,null,null,null,"TEAM VALUE",null,null,{"$f":"T20+T26","v":0},"po","POM POM",null,null,null,null,"x",10000,null,"po",{"$f":"O24*Q24","v":0},null,null,null,null,null,null,null,null,null,null,null,null,null,null,null,null,null,null,"Pacte du Chaos",null,null,null,null,null,null,null,null,null,null,null,null,null,null,null,null,null,null,null,"Joueur Vicieux"]
[null,null,null,null,null,"TRESORERIE",null,null,null,"po",{"$f":"IF(I22=\"Morts-vivants\",\"\",(IF(I22=\"Nécromantiques\",\"\",(IF(I22=\"Khemris\",\"\",(IF(I22=\"Nurgle\",\"\",\"APOTHICAIRE\")))))))","v":"APOTHICAIRE"},null,null,null,null,{"$f":"IF(I22=\"Morts-vivants\",\"\",(IF(I22=\"Nécromantiques\",\"\",(IF(I22=\"Khemris\",\"\",(IF(I22=\"Nurgle\",\"\",\"x\")))))))","v":"x"},{"$f":"IF(I22=\"Morts-vivants\",\"\",(IF(I22=\"Nécromantiques\",\"\",(IF(I22=\"Khemris\",\"\",(IF(I22=\"Nurgle\",\"\",50000)))))))","v":50000},null,{"$f":"IF(I22=\"Morts-vivants\",\"\",(IF(I22=\"Nécromantiques\",\"\",(IF(I22=\"Khemris\",\"\",(IF(I22=\"Nurgle\",\"\",\" po\")))))))","v":" po"},{"$f":"IF(I22=\"Morts-vivants\",\"0,0\",(IF(I22=\"Nécromantiques\",\"0,0\",IF(I22=\"Khemris\",\"0,0\",IF(I22=\"Nurgle\",\"0,0\",IF(O25>0,50000,0))))))","v":0},null,null,null,null,null,null,null,null,null,null,null,null,null,null,null,null,null,null,"Slanns",null,null,null,null,null,null,null,null,null,null,null,null,null,null,null,null,null,null,null,"Lutte"]
[null,null,null,null,null,null,null,null,null,null,null,null,null,null,null,"Valeur des extras",null,null,null,{"$f":"SUM(T21:T25)","v":0},null,null,null,null,null,null,null,null,null,null,null,null,null,null,null,null,null,null,null,null,null,null,null,null,null,null,null,null,null,null,null,null,null,null,null,null,null,null,"Parade"]
[null,null,null,null,null,null,null,null,null,null,null,null,null,null,null,null,null,null,null,null,null,null,null,null,null,null,null,null,null,null,null,null,null,null,null,null,null,null,null,null,null,null,null,null,null,null,null,null,null,null,null,null,null,null,null,null,null,null,"Poursuite"]
[null,null,null,null,null,null,null,null,null,null,null,null,null,null,null,null,null,null,null,null,null,null,null,null,null,null,null,null,null,null,null,null,null,null,null,null,null,null,null,null,null,null,null,null,null,null,null,null,null,null,null,null,null,null,null,null,null,null,"Pro"]
[null,null,null,null,null,null,null,null,null,null,null,null,null,null,null,null,null,null,null,null,null,null,null,null,null,null,null,null,null,null,null,null,null,null,null,null,null,null,null,null,null,null,null,null,null,null,null,null,null,null,null,null,null,null,null,null,null,null,"Tacle"]
[]
[]
[]
[]
[]
[]
[]
[]
[]
[]
[]
[]
[]
[]
[]
[]
[]
[]
[]
[null,null,null,null,"M","F","AG","AR","COMPÉTENCES"]
[null,null,"Ligne Joueur Modèle",null,{"$f":"IF($D50=\"\",\"\",(VLOOKUP($D50,Position,2,FALSE)))","v":""},{"$f":"IF($D50=\"\",\"\",(VLOOKUP($D50,Position,3,FALSE)))","v":""},{"$f":"IF($D50=\"\",\"\",(VLOOKUP($D50,Position,4,FALSE)))","v":""},{"$f":"IF($D50=\"\",\"\",(VLOOKUP($D50,Position,5,FALSE)))","v":""},{"$f":"IF($D50=0,\"\",(IF(VLOOKUP($D50,Nombre,4,FALSE)=1,\"Vous avez trop de joueurs de ce type\",VLOOKUP($D50,Position,6,FALSE))))","v":""}]

{"sheet":"Hall of Fame","index":3,"n_rows":32,"n_cols":54,"rows_kept":32,"cut":false,"hidden":false,"merged":[[41,8,41,9],[20,8,20,9],[1,2,1,19],[25,2,25,19],[42,8,42,9],[27,8,27,9],[28,8,28,9],[29,8,29,9],[30,8,30,9],[31,8,31,9],[32,8,32,9],[33,8,33,9],[34,8,34,9],[9,13,9,14],[10,13,10,14],[11,13,11,14],[43,8,43,9],[3,13,3,14],[4,13,4,14],[5,13,5,14],[6,13,6,14],[7,13,7,14],[8,13,8,14],[36,8,36,9],[37,8,37,9],[38,8,38,9],[39,8,39,9],[40,8,40,9],[35,8,35,9],[21,8,21,9],[22,8,22,9],[23,8,23,9],[46,8,46,9],[47,8,47,9],[4,8,4,9],[3,8,3,9],[5,8,5,9],[6,8,6,9],[7,8,7,9],[8,8,8,9],[9,8,9,9],[10,8,10,9],[45,8,45,9],[15,8,15,9],[16,8,16,9],[17,8,17,9],[18,8,18,9],[19,8,19,9],[12,13,12,14],[44,8,44,9],[11,8,11,9],[12,8,12,9],[13,8,13,9],[14,8,14,9],[17,13,17,14],[18,13,18,14],[19,13,19,14],[20,13,20,14],[13,13,13,14],[14,13,14,14],[15,13,15,14],[16,13,16,14],[28,13,28,14],[29,13,29,14],[30,13,30,14],[31,13,31,14],[21,13,21,14],[22,13,22,14],[23,13,23,14],[27,13,27,14],[36,13,36,14],[37,13,37,14],[38,13,38,14],[39,13,39,14],[32,13,32,14],[33,13,33,14],[34,13,34,14],[35,13,35,14],[44,13,44,14],[45,13,45,14],[46,13,46,14],[47,13,47,14],[40,13,40,14],[41,13,41,14],[42,13,42,14],[43,13,43,14]]}
[]
[null,null,"JOUEURS MORTS",null,null,null,null,null,null,null,null,null,null,null,null,null,null,null,null,null,null,null,null,"LigneMort"]
[null,null,null,null,null,null,null,null,null,null,null,null,null,null,null,null,null,null,null,null,null,null,null,5]
[null,"#",null,null,null,null,null,null,null,null,null,null,null,null,null,null,null,null,"PE","VALEUR","VA",null,null,null,null,null,null,null,null,null,null,null,null,null,null,null,null,null,null,null,null,null,null,null,null,null,"M","F","AG","AR","Valeur","V tot",null,"Valeur selon blessure"]
[null,null,null,null,null,null,null,null,null,null,null,null,null,null,null,null,null,null,null,null,null,null,null,null,null,null,null,null,null,null,null,null,null,null,null,null,null,null,null,null,null,null,null,null,null,null,{"$f":"IF($D5=\"\",\"\",VLOOKUP($D5,Position,2,FALSE))","v":""},{"$f":"IF($D5=\"\",\"\",VLOOKUP($D5,Position,3,FALSE))","v":""},{"$f":"IF($D5=\"\",\"\",VLOOKUP($D5,Position,4,FALSE))","v":""},{"$f":"IF($D5=\"\",\"\",VLOOKUP($D5,Position,5,FALSE))","v":""},{"$f":"IF($D5=\"\",\"\",IF(K5=\"\",VLOOKUP($D5,Position,7,FALSE),0))","v":""},{"$f":"AY5+U5","v":{"$error":"#VALUE!"}},null,{"$f":"IF(K5=\"\",T5,0)","v":0}]
[null,null,null,null,null,null,null,null,null,null,null,null,null,null,null,null,null,null,null,null,null,null,null,null,null,null,null,null,null,null,null,null,null,null,null,null,null,null,null,null,null,null,null,null,null,null,{"$f":"IF($D6=\"\",\"\",VLOOKUP($D6,Position,2,FALSE))","v":""},{"$f":"IF($D6=\"\",\"\",VLOOKUP($D6,Position,3,FALSE))","v":""},{"$f":"IF($D6=\"\",\"\",VLOOKUP($D6,Position,4,FALSE))","v":""},{"$f":"IF($D6=\"\",\"\",VLOOKUP($D6,Position,5,FALSE))","v":""},{"$f":"IF($D6=\"\",\"\",IF(K6=\"\",VLOOKUP($D6,Position,7,FALSE),0))","v":""},{"$f":"AY6+U6","v":{"$error":"#VALUE!"}},null,{"$f":"IF(K6=\"\",T6,0)","v":0}]
[]
[]
[]
[]
[]
[]
[]
[]
[]
[]
[]
[]
[]
[]
[]
[]
[]
[]
[]
[null,null,"JOUEURS RETRAITES",null,null,null,null,null,null,null,null,null,null,null,null,null,null,null,null,null,null,null,null,"LigneRetraite"]
[null,null,null,null,null,null,null,null,null,null,null,null,null,null,null,null,null,null,null,null,null,null,null,29]
[null,"#","NOM DES JOUEURS","POSITION","M","F","AG","AR","COMPÉTENCES",null,"M","P","REU","TD",null,"INT","SOR","JPV","PE","VALEUR","VA",null,null,null,null,null,null,null,null,null,null,null,null,null,null,null,null,null,null,null,null,null,null,null,null,null,"M","F","AG","AR","Valeur","V tot",null,"Valeur selon blessure"]
[null,null,null,null,null,null,null,null,null,null,null,null,null,null,null,null,null,null,null,null,null,null,null,null,null,null,null,null,null,null,null,null,null,null,null,null,null,null,null,null,null,null,null,null,null,null,{"$f":"IF($D29=\"\",\"\",VLOOKUP($D29,Position,2,FALSE))","v":""},{"$f":"IF($D29=\"\",\"\",VLOOKUP($D29,Position,3,FALSE))","v":""},{"$f":"IF($D29=\"\",\"\",VLOOKUP($D29,Position,4,FALSE))","v":""},{"$f":"IF($D29=\"\",\"\",VLOOKUP($D29,Position,5,FALSE))","v":""},{"$f":"IF($D29=\"\",\"\",IF(K29=\"\",VLOOKUP($D29,Position,7,FALSE),0))","v":""},{"$f":"AY29+U29","v":{"$error":"#VALUE!"}},null,{"$f":"IF(K29=\"\",T29,0)","v":0}]
[null,null,null,null,null,null,null,null,null,null,null,null,null,null,null,null,null,null,null,null,null,null,null,null,null,null,null,null,null,null,null,null,null,null,null,null,null,null,null,null,null,null,null,null,null,null,{"$f":"IF($D30=\"\",\"\",VLOOKUP($D30,Position,2,FALSE))","v":""},{"$f":"IF($D30=\"\",\"\",VLOOKUP($D30,Position,3,FALSE))","v":""},{"$f":"IF($D30=\"\",\"\",VLOOKUP($D30,Position,4,FALSE))","v":""},{"$f":"IF($D30=\"\",\"\",VLOOKUP($D30,Position,5,FALSE))","v":""},{"$f":"IF($D30=\"\",\"\",IF(K30=\"\",VLOOKUP($D30,Position,7,FALSE),0))","v":""},{"$f":"AY30+U30","v":{"$error":"#VALUE!"}},null,{"$f":"IF(K30=\"\",T30,0)","v":0}]
[null,null,null,null,null,null,null,null,null,null,null,null,null,null,null,null,null,null,null,null,null,null,null,null,null,null,null,null,null,null,null,null,null,null,null,null,null,null,null,null,null,null,null,null,null,null,{"$f":"IF($D31=\"\",\"\",VLOOKUP($D31,Position,2,FALSE))","v":""},{"$f":"IF($D31=\"\",\"\",VLOOKUP($D31,Position,3,FALSE))","v":""},{"$f":"IF($D31=\"\",\"\",VLOOKUP($D31,Position,4,FALSE))","v":""},{"$f":"IF($D31=\"\",\"\",VLOOKUP($D31,Position,5,FALSE))","v":""},{"$f":"IF($D31=\"\",\"\",IF(K31=\"\",VLOOKUP($D31,Position,7,FALSE),0))","v":""},{"$f":"AY31+U31","v":{"$error":"#VALUE!"}},null,{"$f":"IF(K31=\"\",T31,0)","v":0}]
[null,null,null,null,null,null,null,null,null,null,null,null,null,null,null,null,null,null,null,null,null,null,null,null,null,null,null,null,null,null,null,null,null,null,null,null,null,null,null,null,null,null,null,null,null,null,{"$f":"IF($D32=\"\",\"\",VLOOKUP($D32,Position,2,FALSE))","v":""},{"$f":"IF($D32=\"\",\"\",VLOOKUP($D32,Position,3,FALSE))","v":""},{"$f":"IF($D32=\"\",\"\",VLOOKUP($D32,Position,4,FALSE))","v":""},{"$f":"IF($D32=\"\",\"\",VLOOKUP($D32,Position,5,FALSE))","v":""},{"$f":"IF($D32=\"\",\"\",IF(K32=\"\",VLOOKUP($D32,Position,7,FALSE),0))","v":""},{"$f":"AY32+U32","v":{"$error":"#VALUE!"}},null,{"$f":"IF(K32=\"\",T32,0)","v":0}]